bitfinex-derivatives/quotes_ETHF0:USTF0_20250528
["timestamp","ask_amount","ask_price","bid_price","bid_amount"]
[1748399195848,3.97034,2621.5,2621.4,0.76256]
[1748399196151,40.8,2621.7,2621.6,0.76251]
[1748399196341,40.8,2621.7,2621.5,0.76252]
[1748399196544,41.56248,2621.7,2621.6,2.04361]
[1748399196744,0.76248,2621.7,2621.6,2.04361]
[1748399196953,0.76248,2621.7,2621.6,1.2811]
[1748399197146,0.76248,2621.7,2621.6,2.04361]
[1748399197739,0.6759,2621.8,2621.6,1.2811]
[1748399198054,44.0078,2621.9,2621.7,20.1591]
[1748399198250,44.0078,2621.9,2621.8,0.76245]
[1748399198251,44.77023,2621.9,2621.8,0.76245]
[1748399198451,44.77023,2621.9,2621.8,2.04355]
[1748399198845,44.77023,2621.9,2621.8,6.70955]
[1748399199343,46.05073,2621.9,2621.8,6.70955]
[1748399200480,46.05072,2621.9,2621.8,6.70955]
[1748399201279,45.2883,2621.9,2621.8,6.70955]
[1748399201587,46.05072,2621.9,2621.8,6.70955]
[1748399201785,45.2883,2621.9,2621.8,6.70955]
[1748399201979,46.05072,2621.9,2621.8,6.70955]
[1748399202181,3.2078,2621.9,2621.8,6.70955]
[1748399202973,3.97022,2621.9,2621.8,6.70955]
[1748399203377,3.2078,2621.9,2621.8,6.70955]
[1748399203814,5.27982,2621.9,2621.8,24.7641]
[1748399203977,5.27982,2621.9,2621.8,23.483]
[1748399204580,5.27982,2621.9,2621.8,24.24545]
[1748399205086,0.76248,2621.8,2621.7,0.76246]
[1748399205287,0.76248,2621.8,2621.7,24.22646]
[1748399205885,5.27984,2621.9,2621.8,0.76245]
[1748399206190,5.27984,2621.9,2621.8,2.06605]
[1748399206696,3.2078,2621.9,2621.8,2.06605]
[1748399207490,3.2078,2621.9,2621.8,1.3036]
[1748399207709,3.97022,2621.9,2621.8,1.3036]
[1748399208187,3.97022,2621.9,2621.8,20.82505]
[1748399208880,3.2078,2621.9,2621.8,20.82505]
[1748399209309,3.97022,2621.9,2621.8,20.82505]
[1748399209527,3.2078,2621.9,2621.8,20.82505]
[1748399209686,1.7162,2622.0,2621.9,0.76242]
[1748399209988,1.7162,2622.0,2621.9,2.05802]
[1748399214290,1.7162,2622.0,2621.9,10.26582]
[1748399219295,1.38753608,2622.1,2622.0,0.76239]
[1748399219487,1.38753608,2622.1,2622.0,2.04189]
[1748399219688,1.38753608,2622.1,2622.0,7.04189]
[1748399220294,1.95953608,2622.1,2622.0,7.04189]
[1748399221199,1.95953608,2622.1,2622.0,30.10289]
[1748399221397,1.95953608,2622.1,2622.0,30.09989]
[1748399221599,1.95953608,2622.1,2622.0,7.04189]
[1748399221798,1.95953608,2622.1,2622.0,30.09989]
[1748399222796,1.95953608,2622.1,2622.0,7.04189]
[1748399222995,1.95953608,2622.1,2622.0,30.08589]
[1748399223400,1.95953608,2622.1,2622.0,25.08589]
[1748399224001,1.95953608,2622.1,2622.0,1.2795]
[1748399224296,1.95953608,2622.1,2621.9,0.76241]
[1748399224496,2.77621,2622.0,2621.6,2.52886]
[1748399224695,0.76243,2621.9,2621.8,0.76243]
[1748399224892,1.3284,2621.9,2621.8,19.33543]
[1748399225403,2.09082,2621.9,2621.8,19.33543]
[1748399225697,0.76245,2621.8,2621.7,0.76246]
[1748399225892,2.09085,2621.8,2621.7,23.77946]
[1748399226301,1.3284,2621.8,2621.7,23.77946]
[1748399226514,2.09085,2621.8,2621.7,23.77946]
[1748399227001,0.76249,2621.7,2621.6,0.76249]
[1748399227300,1.2668,2621.7,2621.5,3.2078]
[1748399227499,9.55855403,2621.6,2620.1,3.2078]
[1748399227700,3.2078,2620.2,2619.9,1.3323]
[1748399227913,1.2668,2620.1,2619.7,4.455]
[1748399228116,1.8937,2620.1,2619.7,4.455]
[1748399228501,0.76301,2619.9,2619.7,4.455]
[1748399228690,1.2668,2619.8,2619.7,5.21805]
[1748399229289,1.2668,2619.8,2619.7,4.455]
[1748399229597,2.02984,2619.8,2619.5,0.7631]
[1748399230002,1.2668,2619.8,2619.4,23.049]
[1748399230213,1.2668,2619.8,2619.6,0.76308]
[1748399230393,1.2668,2619.8,2619.5,0.7631]
[1748399231095,1.2668,2619.8,2619.6,0.76309]
[1748399231295,1.2668,2619.8,2619.4,23.047]
[1748399231296,1.2668,2619.8,2619.7,0.76306]
[1748399232507,2.02984,2619.8,2619.6,23.031]
[1748399232707,0.76309,2619.7,2619.3,1.3431]
[1748399233006,1.2958,2619.6,2619.5,0.76312]
[1748399233494,0.00572432,2619.8,2619.7,0.76306]
[1748399234099,0.00572432,2619.8,2619.7,5.76306]
[1748399234408,0.00572432,2619.8,2619.7,19.33106]
[1748399234698,0.00572432,2619.8,2618.9,3.2078]
[1748399234996,3.2078,2619.4,2619.1,42.887]
[1748399235189,3.2078,2619.4,2619.3,0.76318]
[1748399236297,3.2078,2619.7,2619.5,0.76309]
[1748399236495,3.2078,2619.7,2619.3,4.457]
[1748399236698,3.2078,2619.7,2619.6,0.76309]
[1748399237402,0.00572432,2619.8,2619.7,0.76306]
[1748399237599,3.2078,2620.6,2620.0,1.90743]
[1748399237802,1.3294,2621.0,2620.9,0.76271]
[1748399237993,4.5372,2621.0,2620.7,4.457]
[1748399238196,5.29989,2621.0,2620.8,0.76271]
[1748399238392,4.5372,2621.0,2620.7,4.457]
[1748399238580,4.5372,2621.0,2620.6,0.00572432]
[1748399238796,3.97057,2620.7,2620.6,0.00572432]
[1748399239504,3.2078,2620.7,2620.6,0.76852432]
[1748399239690,8.2078,2620.7,2620.0,4.457]
[1748399240003,3.2078,2620.3,2620.0,4.457]
[1748399240194,0.76295,2620.1,2619.9,0.76298]
[1748399240506,3.2078,2620.0,2619.9,0.76298]
[1748399241196,3.97079,2620.0,2619.8,0.76301]
[1748399241386,3.97079,2620.0,2619.8,0.763]
[1748399241611,3.2078,2620.0,2619.9,0.763]
[1748399242406,5.11527,2620.0,2619.5,4.457]
[1748399242593,3.2078,2619.6,2619.5,5.22012]
[1748399243003,3.2078,2619.9,2619.8,0.76303]
[1748399243204,3.2078,2619.9,2619.8,2.11343]
[1748399245232,3.2078,2619.9,2619.8,18.84543]
[1748399245483,3.2078,2619.9,2619.8,19.60846]
[1748399245887,5.3068,2620.2,2620.1,0.76294]
[1748399249079,2.099,2620.2,2620.1,2.72024]
[1748399250504,6.06971,2620.2,2620.1,1.3366]
[1748399250788,5.9942,2620.2,2620.1,2.09954]
[1748399251180,5.3068,2620.2,2620.1,2.09954]
[1748399252500,5.3068,2620.2,2620.1,1.3366]
[1748399252790,5.3068,2620.2,2620.1,2.09954]
[1748399253196,6.6373,2620.2,2620.1,2.09954]
[1748399253489,8.06681,2620.2,2620.1,2.09954]
[1748399254993,7.3039,2620.2,2620.1,2.09954]
[1748399255595,6.6373,2620.2,2620.1,2.09954]
[1748399255792,5.3068,2620.2,2620.1,2.09954]
[1748399255996,2.099,2620.2,2620.1,2.09954]
[1748399256195,2.099,2620.2,2620.1,2.75654]
[1748399258626,1.18951,2620.2,2620.1,2.75654]
[1748399258907,5.68e-06,2620.2,2620.1,9.62774]
[1748399259091,5.68e-06,2620.2,2620.1,4.62774]
[1748399259285,5.68e-06,2620.2,2620.1,5.79294]
[1748399260496,5.68e-06,2620.2,2620.1,1.41994]
[1748399260800,5.68e-06,2620.2,2620.1,24.30494]
[1748399261000,5.68e-06,2620.2,2620.1,0.76294]
[1748399262592,5.68e-06,2620.3,2620.2,0.76291]
[1748399263109,5.68e-06,2620.3,2620.2,5.76291]
[1748399263290,5.68e-06,2620.5,2620.4,0.76285]
[1748399263498,5.68e-06,2620.5,2620.4,3.97065]
[1748399264001,1.3317,2621.6,2621.0,0.76268]
[1748399264196,4.32e-06,2621.1,2621.0,26.88348]
[1748399264400,4.32e-06,2621.1,2621.0,31.88348]
[1748399264691,4.32e-06,2621.1,2621.0,8.97048]
[1748399264915,4.32e-06,2621.1,2621.0,32.55838]
[1748399265093,4.32e-06,2621.1,2621.0,29.35058]
[1748399265701,3.2078,2622.1,2622.0,0.76239]
[1748399265919,4.5704,2622.1,2622.0,0.76239]
[1748399266092,5.1424,2622.1,2622.0,0.76239]
[1748399266294,5.1424,2622.1,2621.9,5.13541]
[1748399266594,5.1424,2622.1,2622.0,0.76239]
[1748399266796,5.90476,2622.1,2621.9,5.1354]
[1748399267095,5.90476,2622.1,2621.9,4.373]
[1748399267501,5.1424,2622.1,2622.0,0.76239]
[1748399272000,5.1424,2622.1,2621.9,22.898]
[1748399272001,5.1424,2622.1,2621.9,22.862]
[1748399272301,0.76239,2622.0,2621.9,4.373]
[1748399272512,1.90605,2621.9,2621.2,4.371]
[1748399272700,3.2078,2621.4,2621.3,0.76258]
[1748399272999,3.2078,2621.4,2621.2,4.371]
[1748399273215,1.2458,2621.4,2621.3,0.76259]
[1748399273800,1.2458,2621.4,2621.3,23.63359]
[1748399275609,0.76248,2621.7,2621.5,0.76252]
[1748399275809,2.03178,2621.7,2621.5,0.76252]
[1748399276004,2.0318,2621.7,2621.3,22.871]
[1748399276205,1.2693,2621.7,2621.6,0.76251]
[1748399278538,1.2693,2621.7,2621.5,1.42233]
[1748399278808,3.2078,2621.6,2621.5,0.76253]
[1748399279012,1.2693,2621.7,2621.6,0.76251]
[1748399280915,3.2078,2621.9,2621.8,0.76245]
[1748399281316,0.572,2622.1,2622.0,0.76239]
[1748399281511,0.572,2622.1,2622.0,5.09339]
[1748399282522,0.572,2622.1,2622.0,6.37419]
[1748399283743,0.572,2622.1,2622.0,23.54639]
[1748399283939,0.572,2622.1,2622.0,5.09239]
[1748399284126,0.572,2622.1,2622.0,23.54439]
[1748399285828,0.572,2622.1,2622.0,24.86919]
[1748399286156,4.32e-06,2622.3,2622.2,0.76233]
[1748399286352,0.6658,2623.1,2623.0,0.7621]
[1748399286553,0.6658,2623.1,2623.0,23.5351]
[1748399286933,0.6366,2623.3,2623.2,0.76204]
[1748399287339,3.2078,2623.4,2623.3,0.76201]
[1748399289434,3.2078,2623.4,2623.0,23.54082432]
[1748399289632,3.2078,2623.1,2623.0,0.00572432]
[1748399289945,3.2078,2623.1,2623.0,23.51982432]
[1748399291338,0.00572432,2623.5,2623.2,0.76204]
[1748399291537,3.2078,2623.3,2623.2,4.329]
[1748399291841,3.96981,2623.3,2623.2,4.329]
[1748399292338,0.76204,2623.2,2623.1,0.76207]
[1748399292540,1.316,2623.2,2623.1,5.09107]
[1748399293133,3.2078,2623.3,2623.2,0.76204]
[1748399293633,0.00572432,2623.5,2623.4,0.76198]
[1748399295835,0.00572432,2623.5,2623.4,23.48298]
[1748399297445,0.76202,2623.3,2623.0,0.00572432]
[1748399297741,3.2078,2623.3,2623.1,4.329]
[1748399298038,1.41414,2623.2,2623.0,0.76781432]
[1748399298247,0.76207,2623.1,2623.0,23.47981432]
[1748399298439,0.6638,2623.1,2623.0,23.47981432]
[1748399298837,1.9558,2623.1,2623.0,23.47981432]
[1748399299140,1.292,2623.1,2623.0,23.47981432]
[1748399300240,2.05407,2623.1,2623.0,5.09681432]
[1748399300430,1.292,2623.1,2623.0,5.09681432]
[1748399300630,1.292,2623.1,2623.0,23.45681432]
[1748399301457,0.76219,2622.8,2622.7,4.329]
[1748399301634,3.96999,2622.8,2622.7,4.329]
[1748399302042,44.76999,2622.8,2622.7,4.329]
[1748399302438,45.35,2622.8,2622.7,4.329]
[1748399302644,45.35,2622.8,2622.7,5.09119]
[1748399303743,46.11216,2622.8,2622.7,5.09119]
[1748399303946,45.35,2622.8,2622.7,5.09119]
[1748399304143,4.55,2622.8,2622.7,5.09119]
[1748399305846,1.3422,2622.8,2622.7,5.09119]
[1748399306658,1.3422,2622.8,2622.7,0.76219]
[1748399306945,1.3422,2622.8,2622.7,24.67309]
[1748399308746,1.3422,2622.8,2622.7,23.41219]
[1748399309541,1.3422,2622.8,2622.7,24.75179]
[1748399313943,1.3422,2622.8,2622.7,0.76219]
[1748399314145,1.3422,2622.8,2622.7,23.28219]
[1748399315848,3.8599,2623.2,2623.1,0.76207]
[1748399317237,3.2078,2623.2,2623.1,0.76207]
[1748399317442,3.2078,2623.2,2623.1,5.00907]
[1748399318648,3.2078,2623.2,2623.1,23.29407]
[1748399320752,3.2078,2623.2,2623.1,0.76207]
[1748399321061,3.2078,2623.2,2623.1,23.27307]
[1748399321348,3.96984,2623.2,2623.1,0.76207]
[1748399321653,0.76207,2623.1,2623.0,5.00808]
[1748399321948,2.12537,2623.1,2623.0,5.00808]
[1748399322164,0.76222,2622.7,2622.6,0.76221]
[1748399322353,3.97002,2622.7,2622.6,0.76221]
[1748399322549,44.77002,2622.7,2622.6,0.76221]
[1748399322948,44.0078,2622.7,2622.6,0.76221]
[1748399323359,45.3711,2622.7,2622.6,0.76221]
[1748399323851,4.5711,2622.7,2622.6,0.76221]
[1748399324056,4.5711,2622.7,2622.6,2.03981]
[1748399324249,4.5711,2622.7,2622.6,20.95191]
[1748399327162,4.5711,2622.7,2622.5,0.63812432]
[1748399327374,5.33329,2622.7,2622.6,4.247]
[1748399327669,0.76222,2622.6,2622.5,4.25272432]
[1748399327961,2.68242,2622.6,2622.5,0.00572432]
[1748399328157,0.7623,2622.3,2622.2,4.247]
[1748399328365,3.9701,2622.3,2622.2,4.247]
[1748399329957,3.9701,2622.3,2622.2,5.00933]
[1748399331063,3.2078,2622.3,2622.2,5.00933]
[1748399331657,4.5245,2622.3,2622.2,5.00933]
[1748399332862,5.2868,2622.3,2622.2,5.00933]
[1748399335263,5.2868,2622.3,2622.2,4.247]
[1748399337481,3.2078,2622.3,2622.2,5.00933]
[1748399338964,0.76219,2622.7,2622.6,0.76222]
[1748399339158,3.96999,2622.7,2622.6,0.76222]
[1748399339864,0.76226,2622.5,2622.4,0.76226]
[1748399340066,0.76226,2622.5,2622.4,18.92526]
[1748399340284,0.76226,2622.5,2622.4,18.163]
[1748399340668,0.76233,2622.2,2622.1,22.9846]
[1748399340866,3.2078,2622.3,2622.2,0.76233]
[1748399341069,3.97003,2622.6,2622.5,0.76224]
[1748399341278,3.97002,2622.6,2622.5,4.153]
[1748399341460,0.76226,2622.5,2622.4,0.76227]
[1748399341662,0.76226,2622.5,2622.4,23.10627]
[1748399342264,3.97003,2622.6,2622.5,0.76224]
[1748399344576,3.2078,2622.6,2622.5,0.76224]
[1748399345269,3.2078,2622.6,2622.5,1.44694]
[1748399346067,3.2078,2622.6,2622.5,2.74444]
[1748399348857,44.0078,2623.0,2622.9,0.76213]
[1748399349172,3.2078,2623.0,2622.9,23.05413]
[1748399350172,3.9699,2623.0,2622.9,23.05413]
[1748399350595,3.2078,2623.0,2622.9,23.05413]
[1748399351969,3.7796,2623.0,2622.9,23.05413]
[1748399352873,3.76815136,2623.0,2622.9,23.05413]
[1748399353070,3.76815136,2623.0,2622.9,0.76213]
[1748399353269,3.76815136,2623.0,2622.9,23.06113]
[1748399353466,0.5718,2623.0,2622.9,23.06113]
[1748399358272,0.5718,2623.0,2622.9,28.06113]
[1748399359373,0.5718,2623.0,2622.9,23.06113]
[1748399359563,0.5718,2623.0,2622.9,28.06113]
[1748399360170,0.5718,2623.0,2622.9,28.36594436]
[1748399360478,0.00572432,2623.5,2623.4,0.76198]
[1748399360781,0.00572432,2623.5,2623.4,23.00998]
[1748399361369,0.00572432,2623.5,2623.4,24.38388]
[1748399361671,0.00572432,2623.5,2623.4,24.75842225]
[1748399361866,0.00572432,2623.5,2623.4,24.38088]
[1748399364975,0.00572432,2623.5,2623.4,24.75605525]
[1748399366365,1.32252432,2623.5,2623.4,24.75605525]
[1748399369279,0.00572432,2623.5,2623.4,24.75605525]
[1748399369975,4.32e-06,2623.5,2623.4,24.75605525]
[1748399370188,4.32e-06,2623.6,2623.5,0.76195]
[1748399370378,3.2078,2624.0,2623.9,0.76184]
[1748399370577,3.2078,2624.0,2623.9,22.93684]
[1748399371175,3.2078,2624.0,2623.9,0.76184]
[1748399371377,3.2078,2624.0,2623.9,22.93584]
[1748399373977,4.5108,2624.0,2623.9,22.93584]
[1748399375682,4.5108,2624.0,2623.9,22.93384]
[1748399376975,4.5108,2624.0,2623.9,0.76184]
[1748399377178,4.5108,2624.0,2623.9,22.93284]
[1748399383378,1.303,2624.0,2623.9,22.93284]
[1748399384683,4.5108,2624.0,2623.9,22.93284]
[1748399386903,0.76187,2623.8,2623.7,0.00572432]
[1748399387201,0.76209,2623.1,2622.8,4.098]
[1748399387407,3.2078,2622.9,2622.8,0.76216]
[1748399387706,0.76216,2622.8,2622.7,22.93118]
[1748399387909,3.2078,2622.9,2622.8,0.76216]
[1748399389382,3.96993,2622.9,2622.8,0.76216]
[1748399389887,3.2078,2622.9,2622.8,0.76216]
[1748399390299,4.5206,2622.9,2622.8,0.76216]
[1748399391188,4.5206,2622.9,2622.8,18.83516]
[1748399393480,4.5206,2622.9,2622.1,41.6138]
[1748399393693,3.2078,2622.2,2622.1,18.83736]
[1748399394792,3.2078,2622.2,2622.1,0.76236]
[1748399395192,4.5853,2622.2,2622.1,18.83936]
[1748399395588,5.34763,2622.2,2622.1,4.86136]
[1748399395788,4.5853,2622.2,2622.1,22.93836]
[1748399395982,5.34763,2622.2,2622.1,22.176]
[1748399396189,5.34763,2622.2,2622.1,22.93836]
[1748399396388,5.34763,2622.2,2622.1,4.86136]
[1748399396589,4.5853,2622.2,2622.1,22.93736]
[1748399397298,5.34763,2622.2,2622.1,22.93736]
[1748399397598,4.5853,2622.2,2622.1,22.93736]
[1748399397996,3.97005,2622.5,2622.4,0.76227]
[1748399398193,3.97004,2622.5,2622.4,0.76227]
[1748399398801,5.23524,2622.5,2622.4,0.76227]
[1748399399595,4.473,2622.5,2622.4,0.76227]
[1748399400703,5.23524,2622.5,2622.4,0.76227]
[1748399401109,0.76233,2622.2,2622.1,4.098]
[1748399401308,0.76227,2622.4,2622.3,0.76229]
[1748399401497,4.5778,2622.4,2622.3,0.76229]
[1748399401697,9.5778,2622.4,2622.3,0.76229]
[1748399402699,10.34007,2622.4,2622.3,0.76229]
[1748399403021,0.76242,2622.0,2621.9,0.76239]
[1748399403194,3.2078,2622.0,2621.5,6.65743]
[1748399403395,0.7625,2621.8,2621.7,0.76245]
[1748399403602,3.9703,2621.8,2621.7,0.76245]
[1748399403806,5.2182,2621.8,2621.7,0.76245]
[1748399404412,0.76254,2621.6,2621.5,0.76252]
[1748399404599,0.76249,2621.7,2621.6,0.76248]
[1748399404801,1.2479,2621.7,2621.6,0.76251]
[1748399405505,2.01038,2621.7,2621.6,0.76251]
[1748399405701,0.76254,2621.5,2621.4,4.86054]
[1748399405921,3.97034,2621.5,2621.4,4.86054]
[1748399406117,3.2078,2621.5,2621.4,4.86054]
[1748399406615,3.2078,2621.5,2621.4,11.18804]
[1748399407106,3.2078,2622.2,2622.1,0.76236]
[1748399407315,3.2078,2622.5,2622.1,22.94036]
[1748399407613,3.97004,2622.5,2622.4,0.76225]
[1748399407808,3.2078,2622.5,2622.4,0.76225]
[1748399408106,3.2078,2622.5,2622.3,0.76228]
[1748399408107,3.97004,2622.5,2622.3,0.76228]
[1748399408310,3.97007,2622.5,2622.3,0.76228]
[1748399408806,3.2078,2622.5,2622.4,0.76227]
[1748399409011,0.76229,2622.4,2622.3,0.76228]
[1748399409415,0.76229,2622.4,2622.3,22.94028]
[1748399409616,0.76242,2621.9,2621.8,4.098]
[1748399409910,3.2078,2621.9,2621.6,4.098]
[1748399410215,0.6748,2621.8,2621.3,0.6429]
[1748399410431,0.76256,2621.4,2621.3,0.76259]
[1748399410606,3.2078,2621.6,2621.1,42.9624]
[1748399410814,3.2078,2621.6,2621.5,0.76254]
[1748399411014,40.8,2621.7,2621.6,0.76251]
[1748399411533,1.90627,2621.6,2621.0,0.76265]
[1748399411814,1.90627,2621.6,2620.9,4.098]
[1748399411815,3.2078,2621.2,2621.1,0.76265]
[1748399412511,4.64522,2621.2,2621.1,0.76265]
[1748399413311,9.64522,2621.2,2621.1,0.76265]
[1748399413516,3.8826,2621.2,2620.8,22.18]
[1748399413715,4.64525,2621.2,2621.0,0.76268]
[1748399413915,4.64525,2621.2,2621.1,0.76265]
[1748399414111,0.76269,2621.0,2620.9,0.76269]
[1748399414327,6.90678,2621.0,2620.1,4.099]
[1748399414536,0.6265,2620.9,2620.1,4.099]
[1748399414816,3.8343,2620.9,2620.2,4.4967]
[1748399415010,3.8343,2620.9,2619.9,1.90749]
[1748399415210,3.2078,2620.6,2620.5,0.76283]
[1748399416424,3.2078,2620.9,2620.8,0.76274]
[1748399416632,3.8826,2621.2,2621.1,0.76265]
[1748399417715,0.00572432,2621.4,2620.9,25.33942]
[1748399417907,0.00572432,2621.4,2621.2,0.7626]
[1748399418123,0.3438,2621.3,2621.2,0.7626]
[1748399418615,0.3438,2621.3,2621.2,2.6555]
[1748399419545,0.00572432,2621.4,2621.3,0.76259]
[1748399419725,0.00572432,2621.4,2621.3,2.03349]
[1748399420017,0.00572432,2621.4,2621.3,7.03349]
[1748399420819,0.00572432,2621.4,2621.3,7.70369]
[1748399422418,0.00572432,2621.4,2621.3,2.70369]
[1748399422616,0.00572432,2621.4,2621.3,20.78769]
[1748399423117,0.00572432,2621.4,2621.3,1.9411]
[1748399423439,0.76262,2621.2,2621.1,4.1]
[1748399423629,0.76262,2621.2,2621.1,4.86264]
[1748399423815,2.02641,2621.3,2621.1,4.1]
[1748399424013,2.02641,2621.3,2621.1,4.86264]
[1748399424213,1.2638,2621.3,2621.2,0.76262]
[1748399424621,0.00572432,2621.4,2621.3,0.76259]
[1748399424915,1.26952432,2621.4,2621.3,0.76259]
[1748399425113,0.76261,2621.3,2621.1,4.86263]
[1748399425313,1.287,2621.2,2621.1,4.86263]
[1748399428634,0.00572432,2621.4,2621.3,0.76259]
[1748399429421,0.00572432,2621.4,2621.3,1.41419]
[1748399429628,0.76828432,2621.4,2621.3,0.6516]
[1748399429924,0.76828432,2621.4,2621.2,22.95261]
[1748399430224,1.3626,2621.3,2621.2,22.95261]
[1748399430623,1.3626,2621.3,2621.2,4.86261]
[1748399431014,0.76830432,2621.4,2621.3,0.76259]
[1748399431015,0.00572432,2621.4,2621.3,0.76259]
[1748399431218,0.00572432,2621.4,2621.3,2.01799]
[1748399431619,1.29222432,2621.4,2621.3,24.19999]
[1748399432022,2.05478432,2621.4,2621.3,24.19999]
[1748399432223,1.29222432,2621.4,2621.3,24.19999]
[1748399432423,1.29222432,2621.4,2621.3,22.94459]
[1748399433324,0.76259,2621.3,2621.2,4.098]
[1748399433520,3.8472,2621.3,2620.9,6.65636]
[1748399433823,1.2865,2621.2,2621.1,0.76265]
[1748399434341,0.76277,2620.7,2620.5,4.098]
[1748399434645,0.7628,2620.6,2620.5,5.369]
[1748399434816,3.2078,2620.8,2620.5,5.369]
[1748399434817,3.97055,2620.8,2620.7,0.76277]
[1748399435722,3.2078,2620.8,2620.7,0.76277]
[1748399436148,0.00572432,2621.4,2621.3,0.76259]
[1748399436331,0.00572432,2621.4,2621.3,4.86059]
[1748399436523,41.56828432,2621.4,2621.3,22.98759]
[1748399436824,40.80572432,2621.4,2621.3,22.98759]
[1748399437034,0.00572432,2621.4,2621.3,22.98759]
[1748399437239,0.00572432,2621.4,2621.3,31.19539]
[1748399437441,3.2078,2622.4,2622.3,0.7623]
[1748399437949,2.06332,2622.6,2622.4,0.76225]
[1748399438433,0.76226,2622.5,2622.4,0.76227]
[1748399438740,0.6517,2622.6,2622.2,1.9797]
[1748399439052,4.32e-06,2622.8,2622.7,0.76219]
[1748399439249,3.2078,2623.7,2623.6,0.76193]
[1748399439552,3.96962,2624.0,2623.7,0.76188]
[1748399439747,3.2078,2624.0,2623.7,0.76188]
[1748399439941,3.2078,2624.0,2623.6,6.18431]
[1748399440135,3.2078,2623.7,2623.2,0.6553]
[1748399440335,0.76201,2623.3,2623.2,4.10272432]
[1748399440524,3.2078,2623.4,2623.2,4.10272432]
[1748399440829,0.00572432,2623.7,2623.2,4.10272432]
[1748399441023,0.76762432,2623.7,2623.4,0.76196]
[1748399441222,0.76762432,2623.7,2623.3,1.3306]
[1748399441422,0.76193,2623.6,2623.3,2.09259]
[1748399441926,0.00572432,2623.7,2623.4,0.76198]
[1748399442123,41.56763432,2623.7,2623.4,0.76198]
[1748399442524,40.80572432,2623.7,2623.3,2.0926]
[1748399442724,40.80572432,2623.7,2623.4,0.76198]
[1748399443028,40.80572432,2623.7,2623.5,0.76195]
[1748399443325,0.00572432,2623.7,2623.6,4.85893]
[1748399444840,0.00572432,2623.7,2623.6,6.19603]
[1748399446136,0.00572432,2623.7,2623.6,2.09903]
[1748399446431,0.00572432,2623.7,2623.6,24.31503]
[1748399446629,0.00572432,2623.7,2623.6,2.09903]
[1748399446825,0.00572432,2623.7,2623.6,24.31003]
[1748399450548,0.00572432,2623.7,2623.6,29.27703]
[1748399451632,0.00572432,2623.7,2623.6,4.095]
[1748399451928,0.00572432,2623.7,2623.6,22.95793]
[1748399452129,1.29852432,2623.7,2623.6,22.95793]
[1748399454036,0.00572432,2623.7,2623.6,22.95793]
[1748399455729,1.36282432,2623.7,2623.6,22.95793]
[1748399455928,0.00572432,2623.7,2623.6,22.95793]
[1748399459556,3.2078,2624.5,2624.4,0.76169]
[1748399459740,3.96946,2624.5,2624.4,4.095]
[1748399460138,0.7617,2624.4,2624.0,1.9045]
[1748399460341,1.3282,2624.4,2624.3,0.76169]
[1748399460540,1.3282,2624.4,2624.2,0.76173]
[1748399460734,1.3282,2624.4,2624.3,0.76172]
[1748399461543,2.08989,2624.4,2624.3,0.76172]
[1748399462043,0.76175,2624.3,2624.2,0.76173]
[1748399462244,0.76179,2624.2,2624.1,4.85675]
[1748399462434,3.96959,2624.2,2624.1,4.85678]
[1748399462942,3.96959,2624.2,2624.1,4.095]
[1748399463440,3.96959,2624.2,2624.1,4.85678]
[1748399463942,3.2078,2624.2,2624.1,4.85678]
[1748399464346,1.3622,2624.2,2624.1,4.85678]
[1748399464835,3.2078,2624.5,2624.4,0.76169]
[1748399465240,0.76179,2624.2,2623.8,1.90468]
[1748399465440,3.2078,2624.2,2624.1,0.76178]
[1748399466235,1.257,2624.2,2624.1,0.76178]
[1748399467646,1.257,2624.2,2624.1,2.03718]
[1748399467942,3.8845,2624.5,2624.4,0.76169]
[1748399468241,5.14459348,2624.5,2624.0,2.5802]
[1748399468443,3.96955,2624.2,2624.1,4.095]
[1748399468741,1.43839,2624.5,2624.1,4.85678]
[1748399468938,1.43839,2624.5,2624.4,0.76169]
[1748399469138,2.69987501,2624.5,2624.4,0.76169]
[1748399469444,4.00684501,2624.5,2624.4,0.76169]
[1748399469644,3.24518501,2624.5,2624.4,0.76169]
[1748399469943,1.307,2624.5,2624.4,0.76169]
[1748399470138,2.56893445,2624.5,2624.4,0.76169]
[1748399471041,3.23743445,2624.5,2624.4,4.85669]
[1748399471251,2.56893445,2624.5,2624.4,4.85669]
[1748399471644,1.307,2624.5,2624.4,6.80289]
[1748399471845,0.00572432,2624.6,2624.5,0.76166]
[1748399472141,0.00572432,2624.6,2624.5,2.04656]
[1748399473951,0.00572432,2624.6,2624.5,22.92366]
[1748399474345,1.28992432,2624.6,2624.5,22.92366]
[1748399474541,4.49772432,2624.6,2624.5,22.92366]
[1748399475543,1.28992432,2624.6,2624.5,22.92366]
[1748399476164,2.05156432,2624.6,2624.5,4.094]
[1748399476460,2.54097464,2624.6,2624.5,0.76166]
[1748399476653,1.28992432,2624.6,2624.5,0.76166]
[1748399477753,1.28992432,2624.6,2624.5,1.44596]
[1748399478849,4.32e-06,2624.6,2624.5,1.44596]
[1748399479142,4.32e-06,2624.6,2624.5,2.81816]
[1748399480451,4.32e-06,2624.6,2624.5,20.88316]
[1748399482144,4.32e-06,2624.6,2624.5,20.88216]
[1748399483249,4.32e-06,2624.6,2624.5,25.88216]
[1748399483644,3.2078,2625.1,2625.0,0.76152]
[1748399483959,3.2078,2625.6,2625.2,1.90363]
[1748399484158,1.3117,2625.5,2625.4,0.7614]
[1748399484353,1.3117,2625.5,2625.4,4.8554]
[1748399484549,1.3117,2625.5,2625.4,6.2125]